fUSD/lending_fUSD_20240214
["ID","MTS","AMOUNT","RATE_DAILY","PERIOD"]
[314032711,1707930644360,-164.6893687,0.00032978,3]
[314032713,1707930644369,-307.34468435,0.00032978,3]
[314032715,1707930644378,-100000.0,0.00033,3]
[314032717,1707930644387,-2000.0,0.00033,2]
[314032719,1707930644396,-155.82046581,0.00033,2]
[314032721,1707930644405,-194.0,0.00033,2]
[314032723,1707930644416,-200.0,0.00033052,5]
[314032725,1707930644425,-1000.0,0.000332,2]
[314032727,1707930644434,-202.0,0.00033231,12]
[314032729,1707930644444,-1035.26,0.00033411,2]
[314032730,1707930644454,-1451.37,0.000335,2]
[314032731,1707930644464,-1451.37,0.000335,2]
[314032732,1707930644474,-1451.37,0.000335,2]
[314032733,1707930644483,-1451.37,0.000335,2]
[314032734,1707930644492,-1451.37,0.000335,2]
[314032735,1707930644503,-1451.37,0.000335,2]
[314032736,1707930644511,-1451.37,0.000335,2]
[314032738,1707930644521,-1451.37,0.000335,2]
[314032740,1707930644529,-1451.37,0.000335,2]
[314032742,1707930644539,-1451.37,0.000335,2]
[314032744,1707930644548,-1451.37,0.000335,2]
[314032746,1707930644558,-1451.37,0.000335,2]
[314032748,1707930644568,-1451.37,0.000335,2]
[314032750,1707930644577,-1451.37,0.000335,2]
[314032752,1707930644587,-1451.37,0.000335,2]
[314032754,1707930644596,-1451.37,0.000335,2]
[314032756,1707930644605,-1451.37,0.000335,2]
[314032758,1707930644615,-1451.37,0.000335,2]
[314032760,1707930644624,-1451.37,0.000335,2]
[314032762,1707930644633,-1451.37,0.000335,2]
[314032764,1707930644642,-3034.65705597,0.00033543,5]
[314032766,1707930644651,-150.94042826,0.0003374,2]
[314032768,1707930644660,-202.0,0.00033869,13]
[314032770,1707930644670,-153.75236843,0.000339,2]
[314032772,1707930644679,-153.75236828,0.000339,2]
[314032774,1707930644688,-153.75236828,0.000339,2]
[314032776,1707930644697,-153.75236828,0.000339,2]
[314032778,1707930644706,-153.75236828,0.000339,2]
[314032780,1707930644715,-153.75236828,0.000339,2]
[314032782,1707930644724,-153.75236828,0.000339,2]
[314032784,1707930644733,-153.75236828,0.000339,2]
[314032786,1707930644742,-153.75236828,0.000339,2]
[314032788,1707930644752,-1027.40490905,0.000339,2]
[314032790,1707930644761,-153.75236828,0.00033928,2]
[314032792,1707930644770,-100000.0,0.00034,4]
[314032794,1707930644779,-8000.0,0.000342,2]
[314032796,1707930644788,-150.84,0.00034247,2]
[314032798,1707930644798,-1000.0,0.00034372,2]
[314032800,1707930644807,-153.75236828,0.00034376,2]
[314032802,1707930644816,-3034.65705597,0.00034454,6]
[314032804,1707930644825,-1190.427132,0.000345,2]
[314032806,1707930644834,-202.0,0.00034506,14]
[314032808,1707930644843,-323.498311,0.0003452,2]
[314032810,1707930644852,-1825.567582,0.0003452,2]
[314032812,1707930644861,-1132.244087,0.0003452,2]
[314032833,1707930645042,-6389.486538,0.0003452,2]
[314032835,1707930645052,-808.745777,0.0003452,2]
[314032837,1707930645062,-10953.405493,0.0003452,2]
[314032839,1707930645075,-7362.48,0.00034521,2]
[314032841,1707930645084,-194.0,0.00034521,2]
[314032843,1707930645093,-150.0,0.00034548,10]
[314032846,1707930645103,-355.84824712,0.00034699,2]
[314032848,1707930645111,-485.247466,0.00034794,2]
[314032850,1707930645121,-2738.351373,0.00034794,2]
[314032851,1707930645129,-1698.366131,0.00034794,2]
[314032854,1707930645139,-9584.229807,0.00034794,2]
[314032856,1707930645148,-1213.118666,0.00034794,2]
[314032857,1707930645158,-16430.10824,0.00034794,2]
[314032859,1707930645167,-8411.16177721,0.00034799,2]
[314032862,1707930645177,-8411.16177715,0.00034799,2]
[314032863,1707930645186,-8411.16177715,0.00034799,2]
[314032866,1707930645195,-8411.16177715,0.00034799,2]
[314032868,1707930645205,-8411.16177715,0.00034799,2]
[314032869,1707930645214,-8411.16177715,0.00034799,2]
[314032872,1707930645224,-8411.16177715,0.00034799,2]
[314032873,1707930645233,-1785.640698,0.000348,2]
[314032875,1707930645242,-153.75236828,0.00034823,2]
[314032877,1707930645251,-150.000002,0.00034879,2]
[314032879,1707930645260,-2819.42547149,0.000349,2]
[314032882,1707930645269,-2819.42547142,0.000349,2]
[314032884,1707930645278,-2819.42547142,0.000349,2]
[314032886,1707930645287,-2819.42547142,0.000349,2]
[314032888,1707930645297,-2819.42547142,0.000349,2]
[314032889,1707930645306,-2819.42547142,0.000349,2]
[314032892,1707930645315,-2819.42547142,0.000349,2]
[314032894,1707930645325,-2819.42547142,0.000349,2]
[314032896,1707930645334,-153.71,0.000349,2]
[314032897,1707930645343,-153.71,0.000349,2]
[314032900,1707930645352,-153.71,0.000349,2]
[314032902,1707930645362,-153.71,0.000349,2]
[314032903,1707930645371,-153.71,0.000349,2]
[314032905,1707930645380,-153.71,0.000349,2]
[314032908,1707930645389,-153.71,0.000349,2]
[314032909,1707930645398,-153.71,0.000349,2]
[314032912,1707930645408,-568.15830673,0.000349,2]
[314032913,1707930645417,-797.04384765,0.000349,2]
[314032915,1707930645426,-646.996622,0.00034931,2]
[314032918,1707930645435,-3651.135164,0.00034931,2]
[314032919,1707930645444,-2264.488175,0.00034931,2]
[314032921,1707930645453,-12778.973076,0.00034931,2]
[314032923,1707930645462,-1617.491554,0.00034931,2]
[314032925,1707930645472,-21906.810986,0.00034931,2]
[314032927,1707930645482,-100000.0,0.00035,5]
[314032929,1707930645491,-74530.12636012,0.00035,4]
[314032932,1707930645501,-161.8733135,0.00035,2]
[314032933,1707930645510,-155.0,0.00035,2]
[314032935,1707930645519,-2380.854265,0.00035,2]
[314032937,1707930645529,-874.47009535,0.00035,2]
[314032939,1707930645538,-199.29260171,0.00035,2]
[314032941,1707930645546,-9482.95520342,0.00035,2]
[314032944,1707930645555,-156.0,0.00035012,2]
[314032945,1707930645565,-1834.68,0.00035055,5]
[314032948,1707930645574,-808.745777,0.00035068,2]
[314032950,1707930645583,-4563.918956,0.00035068,2]
[314032952,1707930645592,-2830.610219,0.00035068,2]
[314032953,1707930645601,-15973.716345,0.00035068,2]
[314032955,1707930645609,-2021.864443,0.00035068,2]
[314032957,1707930645619,-27383.513733,0.00035068,2]
[314032960,1707930645628,-2819.42547142,0.00035128,2]
[314032962,1707930645637,-202.0,0.00035143,15]
[314032964,1707930645646,-153.75236828,0.00035271,2]
[314032966,1707930645655,-1000.0,0.000353,2]
[314032968,1707930645664,-460.02564019,0.00035339,2]
[314032970,1707930645673,-1132.244088,0.00035342,2]
[314032971,1707930645683,-6389.486538,0.00035342,2]
[314032974,1707930645692,-3962.854307,0.00035342,2]
[314032975,1707930645702,-22363.202883,0.00035342,2]
[314032978,1707930645711,-2830.61022,0.00035342,2]
[314032979,1707930645720,-38336.919227,0.00035342,2]
[314032982,1707930645729,-3034.65705597,0.00035364,8]
[314032984,1707930645738,-662.99462925,0.000355,2]
[314032986,1707930645748,-2976.067831,0.000356,2]
[314032987,1707930645759,-1451.37,0.000356,3]
[314032989,1707930645768,-1451.37,0.000356,3]
[314032991,1707930645778,-1451.37,0.000356,3]
[314032994,1707930645787,-1451.37,0.000356,3]
[314032996,1707930645797,-1451.37,0.000356,3]
[314032998,1707930645806,-1451.37,0.000356,3]
[314033000,1707930645815,-1451.37,0.000356,3]
[314033002,1707930645824,-1451.37,0.000356,3]
[314033004,1707930645833,-1451.37,0.000356,3]
[314033006,1707930645843,-1451.37,0.000356,3]
[314033008,1707930645851,-1451.37,0.000356,3]
[314033010,1707930645860,-1451.37,0.000356,3]
[314033011,1707930645869,-1451.37,0.000356,3]
[314033014,1707930645879,-1451.37,0.000356,3]
[314033015,1707930645889,-1451.37,0.000356,3]
[314033018,1707930645898,-1451.37,0.000356,3]
[314033019,1707930645907,-1451.37,0.000356,3]
[314033021,1707930645916,-1451.37,0.000356,3]
[314033023,1707930645925,-1451.37,0.000356,3]
[314033024,1707930645934,-1451.37,0.000356,3]
[314033025,1707930645943,-8000.0,0.000356,2]
[314033026,1707930645951,-150.84,0.00035616,2]
[314033027,1707930645964,-1035.26,0.00035675,2]
[314033028,1707930645973,-153.75236828,0.00035719,2]
[314033029,1707930645985,-202.0,0.00035781,16]
[314033031,1707930645994,-7362.48,0.00035798,2]
[314033033,1707930646005,-18485.91526878,0.000359,5]
[314033035,1707930646013,-4208.0,0.00035925,2]
[314033037,1707930646022,-992.064,0.00035925,2]
[314033039,1707930646031,-19835.0,0.00035925,2]
[314033041,1707930646041,-2925.0,0.00035925,2]
[314033043,1707930646050,-150.0,0.00035925,2]
[314033045,1707930646060,-1037.0,0.00035925,2]
[314033047,1707930646069,-5000.0,0.0003598,2]
[314033049,1707930646078,-295.95671724,0.00035997,4]
[314033051,1707930646088,-529.41016031,0.00035998,4]
[314033053,1707930646097,-100000.0,0.00036,6]
[314033055,1707930646106,-1831.05,0.00036,5]
[314033057,1707930646115,-1774.84,0.00036,5]
[314033059,1707930646124,-1813.95,0.00036,5]
[314033061,1707930646133,-1824.13,0.00036,5]
[314033063,1707930646143,-4166.494963,0.00036,2]
[314033065,1707930646152,-3044.7055425,0.00036064,4]
[314033068,1707930646161,-246.48359676,0.00036065,4]
[314033071,1707930646170,-167.39387378,0.00036065,2]
[314033073,1707930646180,-946.31124793,0.00036066,4]
[314033075,1707930646189,-153.75236828,0.00036166,2]
[314033077,1707930646199,-902.0,0.0003623,2]
[314033079,1707930646208,-3034.65705597,0.00036275,9]
[314033081,1707930646217,-202.0,0.00036418,17]
[314033083,1707930646226,-6937.0175,0.00036612,3]
[314033085,1707930646235,-153.75236828,0.00036614,2]
[314033087,1707930646244,-150.000002,0.00036623,2]
[314033089,1707930646254,-156.0,0.00036656,7]
[314033091,1707930646263,-162.92968762,0.0003668,30]
[314033093,1707930646272,-200.0,0.0003669,10]
[314033095,1707930646281,-2819.42547142,0.00036707,2]
[314033097,1707930646290,-370.34765471,0.00036707,4]
[314033099,1707930646299,-1592.09246113,0.00036707,2]
[314033101,1707930646308,-8361.69852116,0.00036707,3]
[314033103,1707930646318,-1839.12,0.00036708,5]
[314033105,1707930646328,-235.34498503,0.00036709,4]
[314033107,1707930646338,-6273.24822971,0.00036709,4]
[314033109,1707930646346,-517.42040457,0.00036709,4]
[314033111,1707930646356,-464.38250874,0.00036709,4]
[314033113,1707930646365,-157.67339788,0.0003671,4]
[314033115,1707930646374,-208.58067446,0.0003671,2]
[314033117,1707930646383,-156.34299986,0.0003671,4]
[314033119,1707930646392,-155.0,0.00036711,4]
[314033121,1707930646402,-852.79586051,0.00036712,90]
[314033123,1707930646411,-1500.0,0.00036734,2]
[314033125,1707930646421,-150.0,0.00036744,2]
[314033127,1707930646431,-300.0,0.00036744,2]
[314033129,1707930646442,-224.95228755,0.00036747,2]
[314033131,1707930646452,-150.0,0.00036759,2]
[314033133,1707930646461,-8411.16177715,0.00036785,2]
[314033134,1707930646470,-150.0,0.00036794,2]
[314033136,1707930646482,-150.0,0.00036795,2]
[314033138,1707930646490,-150.0,0.00036799,2]
[314033140,1707930646499,-1005.931712,0.000368,2]
[314033142,1707930646509,-4373.85610998,0.000368,7]
[314033144,1707930646518,-150.0,0.00036803,2]
[314033146,1707930646527,-150.0,0.00036817,2]
[314033147,1707930646536,-150.0,0.00036822,2]
[314033149,1707930646545,-150.0,0.00036831,2]
[314033151,1707930646554,-150.0,0.00036845,2]
[314033153,1707930646563,-150.0,0.00036847,2]
[314033155,1707930646572,-150.0,0.00036851,2]
[314033157,1707930646581,-219.11980108,0.00036856,2]
[314033159,1707930646590,-150.0,0.00036888,2]
[314033161,1707930646599,-150.0,0.00036891,2]
[314033163,1707930646608,-150.0,0.00036894,2]
[314033165,1707930646617,-150.0,0.00036895,2]
[314033167,1707930646626,-1376.35,0.000369,2]
[314033169,1707930646635,-1500.0,0.00036903,2]
[314033171,1707930646644,-302.14313577,0.00036907,2]
[314033173,1707930646653,-150.0,0.00036912,2]
[314033174,1707930646662,-900.0,0.00036913,2]
[314033176,1707930646672,-900.0,0.00036913,2]
[314033178,1707930646682,-900.0,0.00036913,2]
[314033180,1707930646691,-900.0,0.00036913,2]
[314033182,1707930646700,-900.0,0.00036913,2]
[314033184,1707930646710,-900.0,0.00036913,2]
[314033186,1707930646719,-900.0,0.00036913,2]
[314033188,1707930646729,-900.0,0.00036913,2]
[314033190,1707930646738,-900.0,0.00036913,2]
[314033192,1707930646747,-900.0,0.00036913,2]
[314033194,1707930646758,-900.0,0.00036913,2]
[314033196,1707930646767,-900.0,0.00036913,2]
[314033198,1707930646776,-900.0,0.00036913,2]
[314033200,1707930646786,-900.0,0.00036913,2]
[314033202,1707930646795,-900.0,0.00036913,2]
[314033204,1707930646804,-900.0,0.00036913,2]
[314033206,1707930646813,-900.0,0.00036913,2]
[314033208,1707930646822,-900.0,0.00036913,2]
[314033210,1707930646832,-900.0,0.00036913,2]
[314033212,1707930646840,-900.0,0.00036913,2]
[314033214,1707930646849,-900.0,0.00036913,2]
[314033216,1707930646858,-900.0,0.00036913,2]
[314033217,1707930646867,-900.0,0.00036913,2]
[314033220,1707930646877,-900.0,0.00036913,2]
[314033221,1707930646886,-900.0,0.00036913,2]
[314033223,1707930646896,-900.0,0.00036913,2]
[314033225,1707930646905,-900.0,0.00036913,2]
[314033227,1707930646914,-900.0,0.00036913,2]
[314033229,1707930646924,-900.0,0.00036913,2]
[314033231,1707930646933,-900.0,0.00036913,2]
[314033233,1707930646942,-900.0,0.00036913,2]
[314033235,1707930646951,-900.0,0.00036913,2]
[314033237,1707930646960,-900.0,0.00036913,2]
[314033239,1707930646970,-900.0,0.00036913,2]
[314033241,1707930646982,-900.0,0.00036913,2]
[314033243,1707930646992,-900.0,0.00036913,2]
[314033245,1707930647002,-900.0,0.00036913,2]
[314033247,1707930647011,-900.0,0.00036913,2]
[314033249,1707930647020,-900.0,0.00036913,2]
[314033251,1707930647029,-900.0,0.00036913,2]
[314033253,1707930647039,-900.0,0.00036913,2]
[314033255,1707930647048,-900.0,0.00036913,2]
[314033257,1707930647057,-900.0,0.00036913,2]
[314033259,1707930647067,-900.0,0.00036913,2]
[314033261,1707930647075,-900.0,0.00036913,2]
[314033263,1707930647084,-900.0,0.00036913,2]
[314033265,1707930647094,-900.0,0.00036913,2]
[314033267,1707930647103,-900.0,0.00036913,2]
[314033269,1707930647112,-900.0,0.00036913,2]
[314033271,1707930647121,-900.0,0.00036913,2]
[314033273,1707930647130,-900.0,0.00036913,2]
[314033275,1707930647139,-900.0,0.00036913,2]
[314033277,1707930647148,-900.0,0.00036913,2]
[314033278,1707930647156,-900.0,0.00036913,2]
[314033281,1707930647166,-900.0,0.00036913,2]
[314033282,1707930647175,-900.0,0.00036913,2]
[314033284,1707930647184,-900.0,0.00036913,2]
[314033286,1707930647193,-900.0,0.00036913,2]
[314033288,1707930647202,-900.0,0.00036913,2]
[314033290,1707930647211,-900.0,0.00036913,2]
[314033292,1707930647220,-900.0,0.00036913,2]
[314033294,1707930647230,-900.0,0.00036913,2]
[314033296,1707930647239,-900.0,0.00036913,2]
[314033298,1707930647248,-900.0,0.00036913,2]
[314033300,1707930647258,-900.0,0.00036913,2]
[314033302,1707930647267,-900.0,0.00036913,2]
[314033304,1707930647276,-900.0,0.00036913,2]
[314033306,1707930647285,-900.0,0.00036913,2]
[314033308,1707930647294,-900.0,0.00036913,2]
[314033310,1707930647303,-530.0,0.00036913,2]
[314033312,1707930647312,-150.0,0.00036937,2]
[314033314,1707930647321,-300.0,0.00036938,2]
[314033316,1707930647330,-150.0,0.00036939,2]
[314033317,1707930647338,-150.0,0.00036948,2]
[314033318,1707930647347,-150.0,0.0003695,2]
[314033319,1707930647356,-150.0,0.00036969,2]
[314033320,1707930647365,-1779.26971565,0.00036985,2]
[314033321,1707930647375,-239.91486415,0.00036986,4]
[314033322,1707930647384,-155.0,0.00036986,4]
[314033323,1707930647393,-512.06274968,0.00036986,4]
[314033324,1707930647402,-200.0,0.00036986,2]
[314033325,1707930647411,-150.0,0.00036986,2]
[314033327,1707930647420,-300.0,0.00036986,7]
[314033329,1707930647429,-450.0,0.00036986,12]
[314033331,1707930647438,-473.3,0.00036986,17]
[314033333,1707930647448,-116341.08,0.00036986,2]
[314033335,1707930647457,-150.84,0.00036986,2]
[314033337,1707930647465,-254.36,0.00036986,2]
[314033339,1707930647474,-200.0,0.00036987,2]
[314033341,1707930647483,-1794.12,0.00036999,5]
[314033343,1707930647492,-100000.0,0.00037,7]
[314033344,1707930647501,-6015.11054132,0.00037,3]
[314033347,1707930647510,-6000.0,0.00037,2]
[314033349,1707930647520,-202.0,0.00037055,19]
[314033351,1707930647529,-153.75236828,0.00037061,2]
[314033352,1707930647538,-7362.48,0.00037075,2]
[314033354,1707930647547,-3034.65705597,0.00037186,10]
[314033356,1707930647556,-1000.0,0.00037186,2]
[314033358,1707930647565,-153.71,0.000372,3]
[314033360,1707930647574,-153.71,0.000372,3]
[314033362,1707930647584,-153.71,0.000372,3]
[314033365,1707930647593,-153.71,0.000372,3]
[314033367,1707930647602,-153.71,0.000372,3]
[314033368,1707930647611,-153.71,0.000372,3]
[314033370,1707930647620,-153.71,0.000372,3]
[314033372,1707930647630,-153.71,0.000372,3]
[314033374,1707930647638,-81180.21710986,0.000374,5]
[314033376,1707930647647,-200.0,0.0003743,10]
[314033378,1707930647656,-150.0,0.00037465,2]
[314033380,1707930647665,-150.0,0.00037465,2]
[314033382,1707930647675,-887.0,0.00037465,2]
[314033384,1707930647684,-455.579,0.00037465,2]
[314033386,1707930647693,-1971.691,0.00037465,2]
[314033388,1707930647701,-954.585,0.00037465,2]
[314033390,1707930647710,-1948.135,0.00037465,2]
[314033392,1707930647719,-1231.0,0.00037465,2]
[314033395,1707930647729,-1254.0,0.00037465,2]
[314033396,1707930647738,-660.667,0.00037465,2]
[314033398,1707930647747,-216.0,0.00037465,2]
[314033400,1707930647757,-1012.214,0.00037465,2]
[314033402,1707930647766,-468.416,0.00037465,2]
[314033404,1707930647775,-865.0,0.00037465,2]
[314033406,1707930647785,-261.071,0.00037465,2]
[314033408,1707930647794,-150.0,0.00037465,2]
[314033410,1707930647803,-343.0,0.00037465,2]
[314033411,1707930647812,-321.0,0.00037465,2]
[314033412,1707930647821,-1138.0,0.00037465,2]
[314033413,1707930647830,-153.75236828,0.00037509,2]
[314033414,1707930647839,-56967.75842423,0.0003755,2]
[314033415,1707930647850,-4056.13364194,0.0003759,2]
[314033416,1707930647859,-1451.37,0.000376,3]
[314033417,1707930647868,-1451.37,0.000376,3]
[314033418,1707930647877,-1451.37,0.000376,3]
[314033419,1707930647886,-1451.37,0.000376,3]
[314033420,1707930647896,-1451.37,0.000376,3]
[314033421,1707930647905,-1451.37,0.000376,3]
[314033422,1707930647914,-1451.37,0.000376,3]
[314033424,1707930647923,-1451.37,0.000376,3]
[314033426,1707930647932,-1451.37,0.000376,3]
[314033428,1707930647941,-1451.37,0.000376,3]
[314033429,1707930647951,-1451.37,0.000376,3]
[314033430,1707930647960,-1451.37,0.000376,3]
[314033431,1707930647969,-1451.37,0.000376,3]
[314033433,1707930647979,-1451.37,0.000376,3]
[314033435,1707930647990,-1451.37,0.000376,3]
[314033437,1707930647998,-1451.37,0.000376,3]
[314033439,1707930648009,-1451.37,0.000376,3]
[314033441,1707930648018,-1451.37,0.000376,3]
[314033444,1707930648029,-1451.37,0.000376,3]
[314033445,1707930648037,-1451.37,0.000376,3]
[314033447,1707930648046,-202.0,0.00037693,20]
[314033449,1707930648056,-48299.5430283,0.00037699,2]
[314033451,1707930648065,-6879.71003742,0.00037701,2]
[314033453,1707930648074,-4473.93,0.00037705,2]
[314033455,1707930648083,-150.0,0.00037799,2]
[314033457,1707930648092,-311.602,0.0003788,2]
[314033459,1707930648101,-36402.34052193,0.00037888,2]
[314033461,1707930648110,-460.02564019,0.00037897,2]
[314033463,1707930648119,-150.0,0.00037899,2]
[314033465,1707930648127,-150.0,0.00037899,2]
[314033467,1707930648136,-165.61,0.000379,7]
[314033469,1707930648145,-5001.74,0.000379,2]
[314033471,1707930648154,-639106.905914,0.000379,3]
[314033473,1707930648163,-1035.26,0.00037939,2]
[314033475,1707930648172,-153.75236828,0.00037957,2]
[314033477,1707930648181,-150.0,0.00037969,2]
[314033479,1707930648190,-200.0,0.00037987,3]
[314033481,1707930648200,-200.0,0.00037987,2]
[314033484,1707930648209,-266.71133846,0.00037991,29]
[314033485,1707930648218,-100000.0,0.00038,8]
[314033487,1707930648227,-7456.53949482,0.00038,2]
[314033489,1707930648236,-3000.0,0.00038,33]
[314033491,1707930648245,-317.44,0.00038,2]
[314033492,1707930648254,-3000.0,0.0003801,34]
[314033493,1707930648263,-5477.23002,0.0003802,34]
[314033494,1707930648272,-5800.0,0.00038082,2]
[314033495,1707930648281,-3034.65705597,0.00038097,11]
[314033496,1707930648290,-1000.0,0.000381,2]
[314033497,1707930648300,-6193.0,0.000381,30]
[314033498,1707930648310,-6193.0,0.000381,2]
[314033499,1707930648319,-200.0,0.0003817,3]
[314033500,1707930648328,-800.0,0.0003817,5]
[314033501,1707930648338,-200.0,0.0003817,10]
[314033502,1707930648347,-500.0,0.0003817,10]
[314033503,1707930648356,-150.0,0.00038246,2]
[314033504,1707930648366,-150.0,0.00038246,2]
[314033505,1707930648375,-150.0,0.00038246,2]
[314033506,1707930648383,-150.0,0.00038246,2]
[314033507,1707930648392,-30457.21440004,0.00038247,2]
[314033508,1707930648402,-156.93016074,0.00038247,9]
[314033509,1707930648411,-226.25476889,0.00038247,7]
[314033510,1707930648421,-1035.36581287,0.00038247,20]
[314033511,1707930648431,-290.00013229,0.00038247,120]
[314033512,1707930648440,-151.0,0.00038247,30]
[314033513,1707930648450,-67685.72873053,0.00038247,120]
[314033514,1707930648460,-186.28591354,0.00038247,120]
[314033515,1707930648470,-547.32372428,0.00038247,120]
[314033516,1707930648480,-170.42842322,0.00038247,120]
[314033517,1707930648490,-152.70398443,0.00038247,120]
[314033518,1707930648500,-303.82047248,0.00038247,2]
[314033519,1707930648512,-8839.57564404,0.00038247,2]
[314033520,1707930648523,-320.53232277,0.00038247,120]
[314033521,1707930648533,-550.0,0.00038247,2]
[314033522,1707930648543,-1005.11605678,0.00038247,2]
[314033523,1707930648552,-10300.84150017,0.00038247,2]
[314033524,1707930648561,-162984.8197307,0.00038247,2]
[314033525,1707930648571,-224.74005351,0.00038247,120]
[314033526,1707930648580,-14390.11290011,0.00038247,2]
[314033527,1707930648589,-6000.0,0.00038247,2]
[314033528,1707930648599,-10210.56909401,0.00038247,2]
[314033529,1707930648608,-260.50827133,0.00038247,119]
[314033530,1707930648617,-342.9958521,0.00038247,2]
[314033531,1707930648626,-200.0,0.00038247,2]
[314033532,1707930648635,-628.75454125,0.00038247,2]
[314033533,1707930648645,-603.0598277,0.00038247,2]
[314033534,1707930648654,-206.78102403,0.00038247,2]
[314033535,1707930648664,-128283.3998049,0.00038247,2]
[314033536,1707930648674,-432.39809683,0.00038247,2]
[314033537,1707930648683,-1027.17793748,0.00038247,2]
[314033538,1707930648692,-20454.520396,0.00038247,2]
[314033539,1707930648701,-2500.0,0.00038247,2]
[314033540,1707930648710,-557.83642931,0.00038247,2]
[314033541,1707930648719,-26762.76650689,0.00038247,2]
[314033542,1707930648729,-2291.33658466,0.00038247,2]
[314033543,1707930648738,-231.80613587,0.00038247,2]
[314033544,1707930648749,-519.07226226,0.00038247,2]
[314033545,1707930648760,-429467.72170293,0.00038247,2]
[314033546,1707930648769,-878.97402283,0.00038247,2]
[314033547,1707930648778,-26562.70031981,0.00038247,2]
[314033548,1707930648787,-9179.95320189,0.00038247,2]
[314033549,1707930648964,-463.86137061,0.00038247,2]
[314033550,1707930648976,-14657.2645789,0.00038247,2]
[314033551,1707930648986,-229.24717132,0.00038247,2]
[314033552,1707930648997,-2051.46574033,0.00038247,2]
[314033553,1707930649008,-388.98668981,0.00038247,2]
[314033554,1707930649017,-527.41571406,0.00038247,2]
[314033555,1707930649027,-9845.02827202,0.00038247,2]
[314033556,1707930649037,-288.28808948,0.00038247,120]
[314033557,1707930649046,-350.84614453,0.00038247,2]
[314033558,1707930649055,-9398.38478215,0.00038247,2]
[314033559,1707930649066,-773.98648847,0.00038247,120]
[314033560,1707930649076,-36746.41875115,0.00038247,2]
[314033561,1707930649085,-650981.91300291,0.00038247,2]
[314033562,1707930649094,-445.28508626,0.00038247,120]
[314033563,1707930649103,-1946.48856317,0.00038247,2]
[314033564,1707930649112,-1768.54487798,0.00038247,2]
[314033565,1707930649121,-9255.30008772,0.00038247,2]
[314033566,1707930649131,-1775.064593,0.00038247,30]
[314033567,1707930649140,-2819.42547142,0.00038285,2]
[314033568,1707930649149,-166.0,0.000383,7]
[314033569,1707930649158,-156.0,0.000383,7]
[314033570,1707930649168,-202.0,0.0003833,21]
[314033571,1707930649177,-7362.48,0.00038352,2]
[314033572,1707930649186,-739.68336347,0.00038356,2]
[314033573,1707930649195,-151.0,0.00038356,7]
[314033574,1707930649205,-151.0,0.00038356,7]
[314033575,1707930649214,-151.0,0.00038356,7]
[314033576,1707930649223,-178.584553,0.00038356,7]
[314033577,1707930649232,-151.0,0.00038356,7]
[314033578,1707930649242,-198.0,0.00038356,7]
[314033579,1707930649251,-151.0,0.00038356,7]
[314033580,1707930649261,-151.0,0.00038356,7]
[314033581,1707930649270,-151.0,0.00038356,7]
[314033582,1707930649279,-151.0,0.00038356,7]
[314033583,1707930649289,-151.0,0.00038356,7]
[314033584,1707930649298,-151.0,0.00038356,7]
[314033585,1707930649307,-150.84,0.00038356,2]
[314033586,1707930649316,-151.0,0.00038356,7]
[314033587,1707930649326,-151.0,0.00038356,7]
[314033588,1707930649335,-151.0,0.00038356,7]
[314033589,1707930649345,-151.0,0.00038356,7]